Cogmind - Beta 16 @@@ ROGUE MODE // 2025.10.24 @ 23:32:17 Player: xgames Result: Destroyed by FN-O4W(R) with Subdweller Machine Gun Performance ------------- Evolutions (0) 0 Regions Visited (3) 600 Robots Destroyed (21) 105 Value Destroyed (388) 388 Prototype IDs (14) 280 Alien Tech Used (0) 0 Bonus (0) 0 TOTAL SCORE: 1373 Bonus ------- None Cogmind --------- Core Integrity 0/250 Matter 77/300 Energy 115/125 System Corruption 6% Temperature Cool (0) Movement Flying (197) Ox2 Location -10/Subcaves Parts ------- > --- POWER (1) -------- Light Ion Engine > --- PROPULSION (2) --- Flight Unit Flight Unit > --- UTILITY (2) ------ Medium Storage Unit Visual Processing Unit > --- WEAPON (2) ------- Grenade Launcher Subdweller Shrapnel Launcher > --- INVENTORY (10) --- Flightbrick Structural Scanner Improved Terrain Scanner Hacking Suite Assault Rifle Assault Rifle Peak State ------------ > --- POWER ------------ Light Ion Engine > --- PROPULSION ------- Flight Unit Flight Unit > --- UTILITY ---------- Medium Storage Unit Visual Processing Unit > --- WEAPON ----------- Grenade Launcher Subdweller Shrapnel Launcher > --- INVENTORY -------- Light Ion Engine Flightbrick Structural Scanner Improved Terrain Scanner Hacking Suite Assault Rifle Assault Rifle [Rating: 13] Favorites ----------- Power Ion Engine Engine Ion Engine Propulsion Compact Wheel Treads Light Treads Wheel Compact Wheel Flight Unit Flight Unit Utility Medium Storage Unit Device Improved Terrain Scanner Storage Medium Storage Unit Processor Visual Processing Unit Weapon Assault Rifle Ballistic Gun Assault Rifle Ballistic Cannon Light Cannon Launcher Grenade Launcher Special Weapon Mining Laser Build | -11 -10 -10 -10 ------- Run | Yrd Mat Min Sub Slots Evolved . | . . . . Power . | . . . . Propulsion . | . . . . Utility . | . . . . Weapon . | . . . . Parts Attached 22 | 8 5 7 2 Power 4 | 1 1 1 1 Engine 4 | 1 1 1 1 Core . | . . . . Reactor . | . . . . Propulsion 7 | 3 2 2 . Treads 1 | 1 . . . Leg . | . . . . Wheel 3 | 2 . 1 . Hover . | . . . . Flight 3 | . 2 1 . Utility 4 | 2 1 1 . Device 1 | 1 . . . Storage 2 | 1 1 . . Processor 1 | . . 1 . Hackware . | . . . . Protection . | . . . . Artifact . | . . . . Weapon 7 | 2 1 3 1 Energy Gun . | . . . . Energy Cannon . | . . . . Ballistic Gun 2 | 2 . . . Ballistic Cannon 1 | . . 1 . Launcher 3 | . 1 1 1 Special Weapon 1 | . . 1 . Impact Weapon . | . . . . Slashing Weapon . | . . . . Piercing Weapon . | . . . . Special Melee Weapon . | . . . . Unidentified Prototypes . | . . . . Parts Lost 9 | . 1 7 1 Power 3 | . 1 1 1 Propulsion 4 | . . 4 . Utility 1 | . . 1 . Weapon 1 | . . 1 . Highest Loss Streak 5 | . 1 5 1 To Critical Strikes . | . . . . Average Backups 8 | 5 8 8 8 Power 1 | 1 1 1 1 Propulsion 2 | 3 3 2 2 Utility 1 | . . 1 3 Weapon 2 | 1 2 3 2 Tool/Special . | . . . . Unused Backups 12 | . 5 . 7 Power . | . . . . Propulsion 8 | . 4 . 4 Utility 3 | . . . 3 Weapon 1 | . 1 . . Tool/Special . | . . . . Average Slot Usage (%) 99 | . 99 99 99 Engine 13 | . 13 13 13 Treads 1 | . 5 . . Wheel 15 | . 22 17 . Flight 10 | . . 10 28 Device 5 | . 14 2 . Storage 14 | . 14 14 14 Processor 8 | . . 11 14 Ballistic Gun 14 | . 28 4 11 Ballistic Cannon 1 | . . 4 . Launcher 9 | . . 12 16 Special Weapon 2 | . . 7 . Peak Build Rating 13 | 9 10 10 13 Average Rating 9 | 6 9 9 10 On Entrance 7 | . 9 10 9 Avg Prop Armor Cover (%) 8 | 3 12 3 . Naked Turns . | . . . . Heaviest Build 24 | 13 21 21 24 Greatest Support 32 | 20 32 32 8 Greatest Overweight (x) 2 | . 1 2 2 Average Overweight (x) . | . . . 2 Largest Inventory Capacity 10 | 8 10 10 10 Average Capacity 9 | 7 8 10 10 Most Carried 10 | 8 10 10 10 Average Carried 8 | 6 8 8 9 Final Capacity 10 | 8 10 10 10 Final Carried 10 | 7 10 9 9 Class Distribution -------------------- 74% | Mutant 25% | Scavenger-Mutant Dominant Class ---------------- Mutant | -10/Materials Mutant | -10/Mines Scavenger-Mutant | -10/Subcaves Resources | -11 -10 -10 -10 ----------- Run | Yrd Mat Min Sub Matter Collected 765 | 230 277 176 82 Remotely . | . . . . Salvage Created 493 | 50 353 90 . Parts 34 | 4 22 8 . Haulers Intercepted . | . . . . Recyclers Shooed 1 | 1 . . . Parts Field Recycled . | . . . . Retrieved Matter . | . . . . Parts Self-Destructed . | . . . . Prevented . | . . . . Parts Restored . | . . . . Kills | -11 -10 -10 -10 ------- Run | Yrd Mat Min Sub Combat Hostiles Destroyed 14 | . 8 5 1 Guns 9 | . 8 1 . Cannons 4 | . . 4 . AOE 1 | . . . 1 Classes Destroyed 9 | 2 5 1 1 Worker 2 | 1 1 . . Tunneler 1 | 1 . . . Recycler 1 | . 1 . . Operator 1 | . 1 . . Watcher 2 | . 2 . . Swarmer 8 | . 5 3 . Grunt 3 | . 3 . . Sentry 2 | . . 2 . Subdweller 1 | . . . 1 Best Kill Streak 4 | 1 4 3 1 Combat Bots Only 3 | . 3 3 1 Max Kills in Single Turn 1 | 1 1 1 1 Gunslinging . | . . . . Exploded 1 | . . . 1 Melee . | . . . . Uniques/NPCs Destroyed . | . . . . Combat | -11 -10 -10 -10 -------- Run | Yrd Mat Min Sub Hostile Shots Fired 87 | . 33 39 15 Missed 29 | . 16 7 6 Hits 58 | . 17 32 9 Projectile 58 | . 17 32 9 Critical Strikes 3 | . 1 2 . Damage Taken 1060 | . 178 617 265 Core 266 | . 31 104 131 Absorbed by Shields . | . . . . Core Remaining (%) 100 | 100 . . . Volleys Fired 60 | 3 25 23 9 Largest 2 | 2 2 2 2 Hottest 100 | 40 40 100 70 Shots Fired 103 | 6 50 34 13 Gun 68 | 6 50 11 1 Cannon 15 | . . 15 . Launcher 14 | . . 2 12 Special 6 | . . 6 . Kinetic 90 | 6 50 26 8 Thermal 6 | . . 6 . Explosive 7 | . . 2 5 Electromagnetic . | . . . . Robot Hit Streak 12 | 5 11 12 5 Robot Miss Streak 3 | . 3 2 2 Penetration Max . | . . . . Secondary Targets 1 | . 1 . . Max Gunslinging Chain 1 | . 1 . . Shots Hit Robots 62 | 5 36 15 6 Core Hits 31 | 2 19 7 3 Critical Kills . | . . . . Critical Parts Destroyed . | . . . . Critical Strikes . | . . . . Melee Attacks . | . . . . Impact . | . . . . Slashing . | . . . . Piercing . | . . . . Sneak Attacks . | . . . . Combat Hostiles . | . . . . Follow-up Attacks . | . . . . Damage Inflicted 1262 | 57 448 265 492 Guns 572 | 57 448 67 . Cannons 176 | . . 176 . Explosions 514 | . . 22 492 Melee . | . . . . Ramming . | . . . . Kinetic 1115 | 57 448 243 367 Thermal . | . . . . Explosive 147 | . . 22 125 Electromagnetic . | . . . . Impact . | . . . . Slashing . | . . . . Piercing . | . . . . Highest Corruption 6 | . 1 6 6 Average Corruption 4 | . 1 5 6 Corruption Purged . | . . . . Corruption Blocked . | . . . . Effects 45 | . 4 24 17 Message Errors 16 | . 2 8 6 Matter Fused 8 | . 2 3 3 Heat Flow Errors 7 | . . 4 3 Energy Discharges 6 | . . 3 3 Data Loss (minor) 4 | . . 2 2 Data Loss (major) 3 | . . 3 . Misfires 1 | . . 1 . Overload Shots . | . . . . Overflow Damage . | . . . . Projectiles . | . . . . Explosions . | . . . . Melee . | . . . . Knockbacks 1 | . . 1 . Impact . | . . . . Kinetic 1 | . . 1 . Secondary . | . . . . Self-Inflicted Damage 50 | . . . 50 Shots 2 | . . . 2 Rammed . | . . . . Targets Rammed . | . . . . Kicked . | . . . . Crushed . | . . . . Highest Temperature 242 | . 6 242 172 Average Temperature 55 | . 3 54 84 Received Heat Transfer 144 | . 54 90 . Siege Activations . | . . . . Martial Activations . | . . . . Shielding Activations . | . . . . Robots Disrupted . | . . . . Combat Hostiles . | . . . . Robots Corrupted . | . . . . Combat Hostiles . | . . . . Parts Fried . | . . . . Impact Corruptions . | . . . . Robots Melted . | . . . . Combat Hostiles . | . . . . Parts Melted . | . . . . Heat Transferred . | . . . . Parts Sabotaged . | . . . . Parts Stolen . | . . . . Parts Stripped . | . . . . Power Chain Reactions . | . . . . Alert | -11 -10 -10 -10 ------- Run | Yrd Mat Min Sub Maximum Alert Level . | . . . . Low Security (%) 100 | 100 100 100 . Level 1 . | . . . . Level 2 . | . . . . Level 3 . | . . . . Level 4 . | . . . . Level 5 . | . . . . High Security . | . . . . Max Security . | . . . . Peak Influence 83 | 5 83 45 . Initial . | . . . . Average 13 | . 24 5 . Influence Increases 381 | 10 246 125 . Destroy 0b10 Robot/C 260 | . 160 100 . Destroy 0b10 Robot/NC 35 | 10 25 . . Destroy Leader 34 | . 24 10 . Successful Hack 22 | . 22 . . Destroy Structure 15 | . . 15 . Lose Combat Pursuer 15 | . 15 . . Influence Decreases 381 | 10 246 109 16 Entered New Map 9 | . . . 9 Time Decay 257 | 10 162 78 7 Lost Part 41 | . 10 31 . Purge Threat 74 | . 74 . . Squads Dispatched . | . . . . Investigation . | . . . . Extermination . | . . . . Reinforcement . | . . . . Assault . | . . . . Garrison . | . . . . Intercept . | . . . . Searches Triggered . | . . . . Construction Impeded . | . . . . Haulers Reinforced . | . . . . Active Scanning Responses . | . . . . Cargo Convoy Interrupts . | . . . . Stealth | -11 -10 -10 -10 --------- Run | Yrd Mat Min Sub Distress Signals 4 | . 2 2 . Communications Jammed . | . . . . Distress Signals . | . . . . Times Spotted 21 | . 14 5 2 Peak Tracking Total 5 | . 5 3 2 Tactical Retreats 1 | . 1 . . Traps | -11 -10 -10 -10 ------- Run | Yrd Mat Min Sub Traps Triggered 1 | . . . 1 Indirectly . | . . . . Trap Hack Attempts . | . . . . Triggered . | . . . . Disarmed . | . . . . Reprogrammed . | . . . . Reused . | . . . . Traps Extracted . | . . . . Installed . | . . . . Triggered . | . . . . Machines | -11 -10 -10 -10 ---------- Run | Yrd Mat Min Sub Machines Disabled 4 | . . 2 2 Max in Single Turn 2 | . . 2 2 Machines Repaired . | . . . . Machines Dismantled . | . . . . Machines Sabotaged . | . . . . Overloaded Fab Kills . | . . . . Hacking | -11 -10 -10 -10 --------- Run | Yrd Mat Min Sub Machines Accessed 5 | . 4 . 1 Terminals 4 | . 4 . . Fabricators . | . . . . Repair Stations . | . . . . Recycling Units . | . . . . Scanalyzers . | . . . . Garrison Access . | . . . . Total Hacks 21 | . 12 . 9 Successful 17 | . 8 . 9 Failed 4 | . 4 . . Catastrophic 1 | . 1 . . Database Lockouts . | . . . . Manual 12 | . 12 . . Terminals 12 | . 12 . . Fabricators . | . . . . Repair Stations . | . . . . Recycling Units . | . . . . Scanalyzers . | . . . . Garrison Access . | . . . . Terminal Hacks 13 | . 4 . 9 Record 8 | . . . 8 Robot Analysis 1 | . 1 . . Prototype ID Bank 1 | . 1 . . Branch Access Points 1 | . 1 . . Unreport Threat 1 | . 1 . . Proto ID Catalog 1 | . . . 1 Fabricator Hacks . | . . . . Repair Station Hacks . | . . . . Recycling Unit Hacks . | . . . . Scanalyzer . | . . . . Garrison Access Hacks . | . . . . Unauthorized Hacks 4 | . 4 . . Terminals 4 | . 4 . . Botnet 4 | . 4 . . Fabricators . | . . . . Repair Stations . | . . . . Recycling Units . | . . . . Scanalyzers . | . . . . Garrison Access . | . . . . Data Cores Recovered . | . . . . Used . | . . . . Hacking Detections 3 | . 3 . . Full Trace Events 1 | . 1 . . Feedback Events 1 | . 1 . . Corruption 1 | . 1 . . Feedback Blocked . | . . . . Robot Schematics Acquired . | . . . . Robots Built . | . . . . Authchips . | . . . . Time . | . . . . Total Robot Build Rating . | . . . . Part Schematics Acquired . | . . . . Parts Built . | . . . . Authchips . | . . . . Time . | . . . . Total Part Build Rating . | . . . . Part Studies Acquired . | . . . . Parts Repaired . | . . . . Time . | . . . . Parts Recycled . | . . . . Recycled Matter . | . . . . Retrieved Matter . | . . . . Retrieved Components . | . . . . Parts Scanalyzed . | . . . . Part Schematics Acquired . | . . . . Parts Damaged . | . . . . Bothacking | -11 -10 -10 -10 ------------ Run | Yrd Mat Min Sub Used RIF Installer . | . . . . Robots Hacked . | . . . . Non-combat . | . . . . Combat . | . . . . Robot Hacks Applied . | . . . . Relay Couplers Released . | . . . . Fabnet Peak Effective % . | . . . . Robots Rewired . | . . . . Allies Hacked . | . . . . Hacks Repelled . | . . . . Allies | -11 -10 -10 -10 -------- Run | Yrd Mat Min Sub Total Allies 1 | . . 1 . Largest Group 1 | . . 1 . Highest-Rated Group 31 | . . 31 . Highest-Rated Ally 31 | . . 31 . Total Orders . | . . . . Ally Attacks . | . . . . Total Damage . | . . . . Kills . | . . . . Allies Corrupted . | . . . . Allies Melted . | . . . . Intel | -11 -10 -10 -10 ------- Run | Yrd Mat Min Sub Active Infowar (turns) 2224 | 49 758 895 522 Optics 1292 | . . 770 522 Terrain 932 | 49 758 125 . Robot Analysis Total 1 | . 1 . . Derelict Logs Recovered 1 | . . . 1 Drone Launches . | . . . . Drone Recoveries . | . . . . Exploration | -11 -10 -10 -10 ------------- Run | Yrd Mat Min Sub Turns Passed 2315 | 126 758 909 522 Spaces Moved 1204 | 56 513 387 248 Core 8 | 8 . . . Treads 33 | 33 . . . Legs . | . . . . Wheels 882 | 15 512 355 . Hover . | . . . . Flight 281 | . 1 32 248 Fastest Speed 50 | 50 100 90 197 Average Speed 123 | 128 100 105 197 Slowest Speed 197 | 160 117 197 197 Overloaded Moves . | . . . . Propulsion Burnouts . | . . . . Robots Hopped . | . . . . Potential Cave-ins 3 | . . 3 . Cave-ins Triggered 1 | . . 1 . Exploration Rate (%) 36 | 4 58 67 15 Regions Visited 3 Branch Regions 2 Pre-discovered Areas . | . . . . Known Exits Taken 1 | . 1 . . Unknown Exits Taken 2 | 1 . 1 . Scrap Searched 3 | . . 1 2 Spaces Dug 6 | . . 6 . Terrain Destroyed 78 | . . 26 52 Melee . | . . . . Projectile 6 | . . 6 . AOE 72 | . . 20 52 Terrain Rammed . | . . . . Walls Destroyed . | . . . . Machines Disabled . | . . . . Actions | -11 -10 -10 -10 --------- Run | Yrd Mat Min Sub Total 1923 | 104 708 842 269 Wait 580 | 24 144 411 1 Move 1200 | 55 512 385 248 Hop . | . . . . Pick Up 37 | 14 12 8 3 Fast Attach . | . . . . Attach 16 | 7 1 7 1 Detach . | . . . . Swap 14 | 1 6 5 2 Drop 15 | . 8 2 5 Fire 60 | 3 25 23 9 Melee . | . . . . Ram . | . . . . Kick . | . . . . Crush . | . . . . Escape Stasis 1 | . . 1 . Rewire . | . . . . Trap . | . . . . Miscellaneous . | . . . . Route ------- -11/Scrapyard -10/Materials (discovered 2 exits: [*Mat] / *Min) -10/Mines (discovered 3 exits: [*Mat x2] / *Sub) -10/Subcaves History --------- Turn | Location | Event 15 | -11/Scrapyard | Discovered new exit (range 16) 127 | -11/Scrapyard | Entered Materials 300 | -10/Materials | Build established: Mutant 505 | -10/Materials | Identified exit to Mines 612 | -10/Materials | Discovered new exit (range 9) 885 | -10/Materials | Entered Mines 886 | -10/Mines | Assembled infested the area 888 | -10/Mines | Received a Mining Laser from a helpful Derelict 892 | -10/Mines | Assisted by a Guerilla fighting off Assembled 1010 | -10/Mines | Crushed by falling debris 1490 | -10/Mines | Discovered new exit (range 16) 1546 | -10/Mines | Discovered new exit (range 9) 1718 | -10/Mines | Core integrity fell below 50% 1752 | -10/Mines | Lost 5 parts (1p3n1w) 1785 | -10/Mines | Discovered new exit (range 5) 1794 | -10/Mines | Entered Subcaves 1806 | -10/Subcaves | Learned Materials emergency access door positions 1863 | -10/Subcaves | Shifting Twisted Machinery released Sub. Shrapnel Launcher 1874 | -10/Subcaves | Shifting Twisted Machinery released Piercing Trap 1998 | -10/Subcaves | Build established: Scavenger-Mutant 2029 | -10/Subcaves | Visited 4L-MR0's lab 2106 | -10/Subcaves | Found Flightbrick 2307 | -10/Subcaves | Core integrity fell below 20% 2316 | -10/Subcaves | Destroyed by FN-O4W(R) with Subdweller Machine Gun Last Messages --------------- 02087_ Testing Chamber breached. 02087_ Machine disabled. 02093_ 4L-MR0 mumbles: "Who knows where that last prototype ended up, probably tossed aside somewhere as if it were useless junk..." 02098_ Dropped Assault Rifle. 02101_ Acquired Assault Rifle. 02103_ System corrupted: Energy discharge (-31). 02104_ Dropped Grenade Launcher. 02104_ Dropped Flight Unit. 02106_ Acquired Flightbrick. 02136_ Subatomizers dissect the Battle Cannon. 02154_ Z,>#9NAF5J0/XQ&ZO6 LWYZUBFUU|Y7UJPVNK< 02170_ #F/OMMY0=J1JUJXAKG 02193_ WOXFISR=07MQV#EAJ|RPK2KNN 02217_ System corrupted: Matter fused (-7). 02252_ System corrupted: Heat flow error (+208). 02273_ System corrupted: Heat flow error (+175). 02285_ Lgt. Ion Engine destroyed. 02298_ JJGYGI3WPCZ B6SKFG5 TTO1 02305_ 4D-LYY(R) destroyed. Map ----- +----------------------------------------------------+ | ????????????##"" """ ######?????????????? | | ???????????? "" ""# ""# ###??????????????????? | | ????????? "" ""###### ###??????????????????? | | ##??????????# """"" ##???# #??????????????????? | | #??????????#""" #???## #??????????????????? | | ##????????#"""# ##??## ##??????????????????? | | ##????#### #" #### ##??????????????????? | | ##??## #" ### #??????????????????? | | ## ##?# ###" #??????????????????? | | ??# ### ##?#"" ##?????????????????? | | ### ## ##?# #?????????????????? | | # ## ### #?????????????????? | | # #?????????????????? | | # # ##?????????????????? | | # ###### ######## #???????????####???? | | ## #????# ##??????# ##???####???# ##??? | | # ##????# #???????# ####### ##?# ##?? | | ## ??????# #??????## # ## ## #?? | | ? ??????# #??????# #?? | | # ?????? #?????# ##?? | | # ?????## #????### # ### # ### #??? | | # ??????# ##???## #####?### ### #??? | | ## ??????## ###????# ????## ## ####??? | | ?###???????####?????## ##??# #?????? | | ???????????????????## #### ## #?????? | | ???????????????????# @ ###### ##?####?????? | | ???????????????????## #?#### #???????????? | | ????????????????????# ;;" ##??????????? | | ????????????????????# ##?????????? | | ??????????????????# #?????????? | | ??????????????????## #?????????? | | ???????????????????# & #?????????? | | ???????????????????## ##?????????? | | ????????????????????## ;#??????????? | | ?????????????????????## ;;;?????????? | | ??????????????????????## ; R #????????? | | ???????????????????????###; ?????????? | | ??????????????????????????# ????????? | | ???????????????????????????# ???????? | | ????????????????????????????; ??????? | | ????????????????????????????## #????? | | ?????????????????????????????" ####????? | | ????????????????????????????? ##???????? | | ????????????????????????????? #????????? | | ????????????????????????????? ????????? | | ???????????????????????????? ##????????? | | ????????????????????????????## ## ##?????????? | | ?????????????????????????????? #??###??????????? | | ??????????????????????????????? ????????????????? | | ???????????????????????????????? ????????????????? | +----------------------------------------------------+ Best States ------------- Heat Dissipation 25 Energy Generation 10 Energy Capacity 250 Matter Stores 300 Matter Capacity 300 Sight Range 18 Terrain Scan Range 16 Terrain Scan Density 10 Evasion (%) 50 Recoil Reduction 1 Item Schematics ----------------- None Robot Schematics ------------------ None Fabricated ------------ Nothing Repaired ---------- Nothing Studied --------- None Alien Tech Used ----------------- None Achievements -------------- Mistaken Identity Quantum Hacking Spot Them First Challenges ------------ None Game ------ Seed ArcsightVariablePurifier Manual? 0 Play Time 00:23:59 Cumulative 11.3 hours Start 2025.10.24 @ 23:09:02 End 2025.10.24 @ 23:32:17 Sessions 1 Manual Loads 0 Difficulty Rogue Special Mode None Game No. 22 Rogue 22 Adventurer 0 Explorer 0 Win Type - Total 0 Types 0/0/0/0/0/0/0/0/0/0 Lore% 9 Gallery% 15 Achievement% 10 Wizard Run 0 Options --------- Layout 1 ASCII 0 Keyboard 0 Movement Numpad Keybinds 0 Fullscreen 1 Font 24/Smallcaps Map View 76x35 Zoom Use 0% Tactical HUD 1 Map Filters NONE Filters NONE Steam 1 RUN: c16b50a6-87c2-4edb-846e-8c692beb27a7